{"text_format":"1","workbook":"xlsx","n_sheets":3,"sheets":["Urlaub","Übersicht-Jahr(2)","Übersicht-Jahr(1)"],"not_rendered":{"charts":4,"images":6,"macros":1,"external_links":0,"defined_names":34,"comments":1,"pivot_tables":0},"unopened":[{"sheet":"Übersicht-Jahr(2)","index":1,"reason":"not_a_worksheet"},{"sheet":"Übersicht-Jahr(1)","index":2,"reason":"not_a_worksheet"}],"bounds":{"document_bytes":16777216,"sheet_cells":100000,"rows_first":2000,"rows_last":500,"rows_between":2000,"halvings":0,"cell_chars":16384,"cell_head_chars":4096},"cells_cut":0,"cells_raw":0,"read":"whole","date_system":"1900"}

{"sheet":"Urlaub","index":0,"n_rows":540,"n_cols":213,"rows_kept":540,"cut":false,"hidden":false,"merged":[[2,96,2,102],[501,7,501,36],[502,8,502,14],[502,15,502,21],[502,22,502,28],[502,29,502,35],[2,82,2,88],[2,173,2,179],[2,180,2,186],[42,7,42,37],[42,38,42,68],[42,69,42,98],[42,99,42,129],[42,130,42,159],[42,160,42,190],[2,131,2,137],[2,138,2,144],[2,145,2,151],[2,152,2,158],[2,159,2,165],[2,166,2,172],[2,89,2,95],[2,47,2,53],[2,54,2,60],[2,61,2,67],[2,68,2,74],[2,75,2,81],[1,127,1,157],[1,158,1,187],[2,40,2,46],[1,7,1,37],[1,38,1,65],[1,66,1,96],[1,97,1,126],[2,7,2,11],[2,12,2,18],[2,19,2,25],[2,26,2,32],[2,33,2,39],[2,103,2,109],[2,110,2,116],[2,117,2,123],[2,124,2,130]]}
[null,null,null,null,null,null,null,null,null,null,null,null,null,null,null,null,null,null,null,null,null,null,null,null,null,null,null,null,null,null,null,null,null,null,null,null,null,null,null,null,null,null,null,null,null,null,null,null,null,null,null,null,null,null,null,null,null,null,null,null,null,null,null,null,null,null,null,null,null,null,null,null,null,null,null,null,null,null,null,null,null,null,null,null,null,null,null,null,null,null,null,null,null,null,null,null,null,null,null,null,null,null,null,null,null,null,null,null,null,null,null,null,null,null,null,null,null,null,null,null,null,null,null,null,null,null,null,null,null,null,null,null,null,null,null,null,null,null,null,null,null,null,null,null,null,null,null,null,null,null,null,null,null,null,null,null,null,null,null,null,null,null,null,null,null,null,null,null,null,null,null,null,null,null,null,null,null,null,null,null,null,null,null,null,null,null,null,null,null,null,null,null,null,null,null,null,null,null,null,null,null,null,null,null,null,null,null,null,2003,2003,"ja"]
[2003,1," Urlaubsanspruch"," Urlaub 1. Halbjahr g."," Urlaub 2. Halbjahr g."," Urlaub genommen"," Rest","2003-01-01",null,null,null,null,null,null,null,null,null,null,null,null,null,null,null,null,null,null,null,null,null,null,null,null,null,null,null,null,null,null,"2003-02-01",null,null,null,null,null,null,null,null,null,null,null,null,null,null,null,null,null,null,null,null,null,null,null,null,null,null,null,"2003-03-01",null,null,null,null,null,null,null,null,null,null,null,null,null,null,null,null,null,null,null,null,null,null,null,null,null,null,null,null,null,null,"2003-04-01",null,null,null,null,null,null,null,null,null,null,null,null,null,null,null,null,null,null,null,null,null,null,null,null,null,null,null,null,null,"2003-05-01",null,null,null,null,null,null,null,null,null,null,null,null,null,null,null,null,null,null,null,null,null,null,null,null,null,null,null,null,null,null,"2003-06-01",null,null,null,null,null,null,null,null,null,null,null,null,null,null,null,null,null,null,null,null,null,null,null,null,null,null,null,null,null,null,null,null,null,null,null,null,null,null,null,null,null,null,null,null,null,null,null,null,null,{"$f":"IF(HC2=\"x\",$HB2,\"\")","v":"2003-01-01"},{"$f":"DATE(HB$1,1,1)","v":"2003-01-01"},"x","Neujahr","1. Januar"]
[null,null,null,null,null,null,null,1,null,null,null,null,2,null,null,null,null,null,null,3,null,null,null,null,null,null,4,null,null,null,null,null,null,5,null,null,null,null,null,null,6,null,null,null,null,null,null,7,null,null,null,null,null,null,8,null,null,null,null,null,null,9,null,null,null,null,null,null,10,null,null,null,null,null,null,11,null,null,null,null,null,null,12,null,null,null,null,null,null,13,null,null,null,null,null,null,14,null,null,null,null,null,null,15,null,null,null,null,null,null,16,null,null,null,null,null,null,17,null,null,null,null,null,null,18,null,null,null,null,null,null,19,null,null,null,null,null,null,20,null,null,null,null,null,null,21,null,null,null,null,null,null,22,null,null,null,null,null,null,23,null,null,null,null,null,null,24,null,null,null,null,null,null,25,null,null,null,null,null,null,26,null,null,null,null,null,null,27,null,null,null,null,null,null,null,null,null,null,null,null,null,null,null,null,null,null,null,null,"2003-01-06",{"$f":"DATE(HB$1,1,6)","v":"2003-01-06"},"x","Heilige Drei Könige","6. Januar"]
[null,null,null,null,null,null,null,{"$f":"DATE($A$2,1,1)","v":"2003-01-01"},{"$f":"H4+1","v":"2003-01-02"},"2003-01-03","2003-01-04","2003-01-05","2003-01-06","2003-01-07","2003-01-08","2003-01-09","2003-01-10","2003-01-11","2003-01-12","2003-01-13","2003-01-14","2003-01-15","2003-01-16","2003-01-17","2003-01-18","2003-01-19","2003-01-20","2003-01-21","2003-01-22","2003-01-23","2003-01-24","2003-01-25","2003-01-26","2003-01-27","2003-01-28","2003-01-29","2003-01-30","2003-01-31","2003-02-01","2003-02-02","2003-02-03","2003-02-04","2003-02-05","2003-02-06","2003-02-07","2003-02-08","2003-02-09","2003-02-10","2003-02-11","2003-02-12","2003-02-13","2003-02-14","2003-02-15","2003-02-16","2003-02-17","2003-02-18","2003-02-19","2003-02-20","2003-02-21","2003-02-22","2003-02-23","2003-02-24","2003-02-25","2003-02-26","2003-02-27","2003-02-28","2003-03-01","2003-03-02","2003-03-03","2003-03-04","2003-03-05","2003-03-06",{"$f":"BT4+1","v":"2003-03-07"},"2003-03-08","2003-03-09","2003-03-10","2003-03-11","2003-03-12","2003-03-13","2003-03-14","2003-03-15","2003-03-16","2003-03-17","2003-03-18","2003-03-19","2003-03-20","2003-03-21","2003-03-22","2003-03-23","2003-03-24","2003-03-25","2003-03-26","2003-03-27","2003-03-28","2003-03-29","2003-03-30","2003-03-31","2003-04-01","2003-04-02","2003-04-03","2003-04-04","2003-04-05","2003-04-06","2003-04-07","2003-04-08","2003-04-09","2003-04-10","2003-04-11","2003-04-12","2003-04-13","2003-04-14","2003-04-15","2003-04-16","2003-04-17","2003-04-18","2003-04-19","2003-04-20","2003-04-21","2003-04-22","2003-04-23","2003-04-24","2003-04-25","2003-04-26","2003-04-27","2003-04-28","2003-04-29","2003-04-30","2003-05-01","2003-05-02","2003-05-03","2003-05-04","2003-05-05","2003-05-06","2003-05-07","2003-05-08","2003-05-09",{"$f":"EF4+1","v":"2003-05-10"},"2003-05-11","2003-05-12","2003-05-13","2003-05-14","2003-05-15","2003-05-16","2003-05-17","2003-05-18","2003-05-19","2003-05-20","2003-05-21","2003-05-22","2003-05-23","2003-05-24","2003-05-25","2003-05-26","2003-05-27","2003-05-28","2003-05-29","2003-05-30","2003-05-31","2003-06-01","2003-06-02","2003-06-03","2003-06-04","2003-06-05","2003-06-06","2003-06-07","2003-06-08","2003-06-09","2003-06-10","2003-06-11","2003-06-12","2003-06-13","2003-06-14","2003-06-15","2003-06-16","2003-06-17","2003-06-18","2003-06-19","2003-06-20","2003-06-21","2003-06-22","2003-06-23","2003-06-24","2003-06-25","2003-06-26","2003-06-27","2003-06-28","2003-06-29","2003-06-30",null,null,null,null,null,null,null,null,null,null,null,null,null,null,null,null,null,null,null,null,"",{"$f":"HB11-48","v":"2003-03-03"},null,"Rosenmontag","48 Tage vor Ostersonntag"]
["Name","Vorname",null,null,null,null,null,null,null,null,null,null,null,null,null,null,null,null,null,null,null,null,null,null,null,null,null,null,null,null,null,null,null,null,null,null,null,null,null,null,null,null,null,null,null,null,null,null,null,null,null,null,null,null,null,null,null,null,null,null,null,null,null,null,null,null,null,null,null,null,null,null,null,null,null,null,null,null,null,null,null,null,null,null,null,null,null,null,null,null,null,null,null,null,null,null,null,null,null,null,null,null,null,null,null,null,null,null,null,null,null,null,null,null,null,null,null,null,null,null,null,null,null,null,null,null,null,null,null,null,null,null,null,null,null,null,null,null,null,null,null,null,null,null,null,null,null,null,null,null,null,null,null,null,null,null,null,null,null,null,null,null,null,null,null,null,null,null,null,null,null,null,null,null,null,null,null,null,null,null,null,null,null,null,null,null,null,null,null,null,null,null,null,null,null,null,null,null,null,null,null,null,null,null,null,null,null,null,"",{"$f":"HB11-47","v":"2003-03-04"},null,"Fasching","47 Tage vor Ostersonntag"]
["Juhnke","Harald",30,{"$f":"COUNTIF(H6:GZ6,\"U\")","v":6},{"$f":"E47","v":0},{"$f":"D6+E6","v":6},{"$f":"C6-F6","v":24},null,"U","U",null,null,null,"U","U","U","U",null,null,null,null,null,null,null,null,null,null,null,null,null,null,null,null,null,null,null,null,null,null,null,null,null,null,null,null,null,null,null,null,null,null,null,null,null,null,null,null,null,null,null,null,null,null,null,null,null,null,null,null,null,null,null,null,null,null,null,null,null,null,null,null,null,null,null,null,null,null,null,null,null,null,null,null,null,null,null,null,null,null,null,null,null,null,null,null,null,null,null,null,null,null,null,null,null,null,null,null,null,null,null,null,null,null,null,null,null,null,null,null,null,null,null,null,null,null,null,null,null,null,null,null,null,null,null,null,null,null,null,null,null,null,null,null,null,null,null,null,null,null,null,null,null,null,null,null,null,null,null,null,null,null,null,null,null,null,null,null,null,null,null,null,null,null,null,null,null,null,null,null,null,null,null,null,null,null,null,null,null,null,null,null,null,null,null,null,null,null,null,"",{"$f":"HB11-46","v":"2003-03-05"},null,"Aschermittwoch","46 Tage vor Ostersonntag"]
[null,null,0,0,0,0,0,null,null,null,null,null,null,null,null,null,null,null,null,null,null,null,null,null,null,null,null,null,null,null,null,null,null,null,null,null,null,null,null,null,null,null,null,null,null,null,null,null,null,null,null,null,null,null,null,null,null,null,null,null,null,null,null,null,null,null,null,null,null,null,null,null,null,null,null,null,null,null,null,null,null,null,null,null,null,null,null,null,null,null,null,null,null,null,null,null,null,null,null,null,null,null,null,null,null,null,null,null,null,null,null,null,null,null,null,null,null,null,null,null,null,null,null,null,null,null,null,null,null,null,null,null,null,null,null,null,null,null,null,null,null,null,null,null,null,null,null,null,null,null,null,null,null,null,null,null,null,null,null,null,null,null,null,null,null,null,null,null,null,null,null,null,null,null,null,null,null,null,null,null,null,null,null,null,null,null,null,null,null,null,null,null,null,null,null,null,null,null,null,null,null,null,null,null,null,null,null,null,"",{"$f":"DATE(HB$1,2,14)","v":"2003-02-14"},null,"Valentienstag","14. Februar"]
[null,null,0,0,0,0,0,null,null,null,null,null,null,null,null,null,null,null,null,null,null,null,null,null,null,null,null,null,null,null,null,null,null,null,null,null,null,null,null,null,null,null,null,null,null,null,null,null,null,null,null,null,null,null,null,null,null,null,null,null,null,null,null,null,null,null,null,null,null,null,null,null,null,null,null,null,null,null,null,null,null,null,null,null,null,null,null,null,null,null,null,null,null,null,null,null,null,null,null,null,null,null,null,null,null,null,null,null,null,null,null,null,null,null,null,null,null,null,null,null,null,null,null,null,null,null,null,null,null,null,null,null,null,null,null,null,null,null,null,null,null,null,null,null,null,null,null,null,null,null,null,null,null,null,null,null,null,null,null,null,null,null,null,null,null,null,null,null,null,null,null,null,null,null,null,null,null,null,null,null,null,null,null,null,null,null,null,null,null,null,null,null,null,null,null,null,null,null,null,null,null,null,null,null,null,null,null,null,"",{"$f":"HB11-7","v":"2003-04-13"},null,"Palmsonntag","7 Tage vor Ostersonntag"]
[null,null,0,0,0,0,0,null,null,null,null,null,null,null,null,null,null,null,null,null,null,null,null,null,null,null,null,null,null,null,null,null,null,null,null,null,null,null,null,null,null,null,null,null,null,null,null,null,null,null,null,null,null,null,null,null,null,null,null,null,null,null,null,null,null,null,null,null,null,null,null,null,null,null,null,null,null,null,null,null,null,null,null,null,null,null,null,null,null,null,null,null,null,null,null,null,null,null,null,null,null,null,null,null,null,null,null,null,null,null,null,null,null,null,null,null,null,null,null,null,null,null,null,null,null,null,null,null,null,null,null,null,null,null,null,null,null,null,null,null,null,null,null,null,null,null,null,null,null,null,null,null,null,null,null,null,null,null,null,null,null,null,null,null,null,null,null,null,null,null,null,null,null,null,null,null,null,null,null,null,null,null,null,null,null,null,null,null,null,null,null,null,null,null,null,null,null,null,null,null,null,null,null,null,null,null,null,null,"",{"$f":"HB11-3","v":"2003-04-17"},null,"Gründonnerstag","3 Tage vor Ostersonntag"]
[null,null,0,0,0,0,0,null,null,null,null,null,null,null,null,null,null,null,null,null,null,null,null,null,null,null,null,null,null,null,null,null,null,null,null,null,null,null,null,null,null,null,null,null,null,null,null,null,null,null,null,null,null,null,null,null,null,null,null,null,null,null,null,null,null,null,null,null,null,null,null,null,null,null,null,null,null,null,null,null,null,null,null,null,null,null,null,null,null,null,null,null,null,null,null,null,null,null,null,null,null,null,null,null,null,null,null,null,null,null,null,null,null,null,null,null,null,null,null,null,null,null,null,null,null,null,null,null,null,null,null,null,null,null,null,null,null,null,null,null,null,null,null,null,null,null,null,null,null,null,null,null,null,null,null,null,null,null,null,null,null,null,null,null,null,null,null,null,null,null,null,null,null,null,null,null,null,null,null,null,null,null,null,null,null,null,null,null,null,null,null,null,null,null,null,null,null,null,null,null,null,null,null,null,null,null,null,null,"2003-04-18",{"$f":"HB11-2","v":"2003-04-18"},"x","Karfreitag","2 Tage vor Ostersonntag"]
[null,null,0,0,0,0,0,null,null,null,null,null,null,null,null,null,null,null,null,null,null,null,null,null,null,null,null,null,null,null,null,null,null,null,null,null,null,null,null,null,null,null,null,null,null,null,null,null,null,null,null,null,null,null,null,null,null,null,null,null,null,null,null,null,null,null,null,null,null,null,null,null,null,null,null,null,null,null,null,null,null,null,null,null,null,null,null,null,null,null,null,null,null,null,null,null,null,null,null,null,null,null,null,null,null,null,null,null,null,null,null,null,null,null,null,null,null,null,null,null,null,null,null,null,null,null,null,null,null,null,null,null,null,null,null,null,null,null,null,null,null,null,null,null,null,null,null,null,null,null,null,null,null,null,null,null,null,null,null,null,null,null,null,null,null,null,null,null,null,null,null,null,null,null,null,null,null,null,null,null,null,null,null,null,null,null,null,null,null,null,null,null,null,null,null,null,null,null,null,null,null,null,null,null,null,null,null,null,"2003-04-20",{"$f":"ROUND((DAY(MINUTE(HB$1/38)/2+55)&\".4.\"&HB$1)/7,)*7-6","v":"2003-04-20"},"x","Ostersonntag"]
[null,null,0,0,0,0,0,null,null,null,null,null,null,null,null,null,null,null,null,null,null,null,null,null,null,null,null,null,null,null,null,null,null,null,null,null,null,null,null,null,null,null,null,null,null,null,null,null,null,null,null,null,null,null,null,null,null,null,null,null,null,null,null,null,null,null,null,null,null,null,null,null,null,null,null,null,null,null,null,null,null,null,null,null,null,null,null,null,null,null,null,null,null,null,null,null,null,null,null,null,null,null,null,null,null,null,null,null,null,null,null,null,null,null,null,null,null,null,null,null,null,null,null,null,null,null,null,null,null,null,null,null,null,null,null,null,null,null,null,null,null,null,null,null,null,null,null,null,null,null,null,null,null,null,null,null,null,null,null,null,null,null,null,null,null,null,null,null,null,null,null,null,null,null,null,null,null,null,null,null,null,null,null,null,null,null,null,null,null,null,null,null,null,null,null,null,null,null,null,null,null,null,null,null,null,null,null,null,"2003-04-21",{"$f":"HB11+1","v":"2003-04-21"},"x","Ostermontag","1 Tag nach Ostersonntag"]
[null,null,0,0,0,0,0,null,null,null,null,null,null,null,null,null,null,null,null,null,null,null,null,null,null,null,null,null,null,null,null,null,null,null,null,null,null,null,null,null,null,null,null,null,null,null,null,null,null,null,null,null,null,null,null,null,null,null,null,null,null,null,null,null,null,null,null,null,null,null,null,null,null,null,null,null,null,null,null,null,null,null,null,null,null,null,null,null,null,null,null,null,null,null,null,null,null,null,null,null,null,null,null,null,null,null,null,null,null,null,null,null,null,null,null,null,null,null,null,null,null,null,null,null,null,null,null,null,null,null,null,null,null,null,null,null,null,null,null,null,null,null,null,null,null,null,null,null,null,null,null,null,null,null,null,null,null,null,null,null,null,null,null,null,null,null,null,null,null,null,null,null,null,null,null,null,null,null,null,null,null,null,null,null,null,null,null,null,null,null,null,null,null,null,null,null,null,null,null,null,null,null,null,null,null,null,null,null,"",{"$f":"HB11+7","v":"2003-04-27"},null,"Weißer Sonntag","7 Tage nach Ostersonntag"]
[null,null,0,0,0,0,0,null,null,null,null,null,null,null,null,null,null,null,null,null,null,null,null,null,null,null,null,null,null,null,null,null,null,null,null,null,null,null,null,null,null,null,null,null,null,null,null,null,null,null,null,null,null,null,null,null,null,null,null,null,null,null,null,null,null,null,null,null,null,null,null,null,null,null,null,null,null,null,null,null,null,null,null,null,null,null,null,null,null,null,null,null,null,null,null,null,null,null,null,null,null,null,null,null,null,null,null,null,null,null,null,null,null,null,null,null,null,null,null,null,null,null,null,null,null,null,null,null,null,null,null,null,null,null,null,null,null,null,null,null,null,null,null,null,null,null,null,null,null,null,null,null,null,null,null,null,null,null,null,null,null,null,null,null,null,null,null,null,null,null,null,null,null,null,null,null,null,null,null,null,null,null,null,null,null,null,null,null,null,null,null,null,null,null,null,null,null,null,null,null,null,null,null,null,null,null,null,null,"2003-05-01",{"$f":"DATE(HB$1,5,1)","v":"2003-05-01"},"x","Tag der Arbeit","1. Mai"]
[null,null,0,0,0,0,0,null,null,null,null,null,null,null,null,null,null,null,null,null,null,null,null,null,null,null,null,null,null,null,null,null,null,null,null,null,null,null,null,null,null,null,null,null,null,null,null,null,null,null,null,null,null,null,null,null,null,null,null,null,null,null,null,null,null,null,null,null,null,null,null,null,null,null,null,null,null,null,null,null,null,null,null,null,null,null,null,null,null,null,null,null,null,null,null,null,null,null,null,null,null,null,null,null,null,null,null,null,null,null,null,null,null,null,null,null,null,null,null,null,null,null,null,null,null,null,null,null,null,null,null,null,null,null,null,null,null,null,null,null,null,null,null,null,null,null,null,null,null,null,null,null,null,null,null,null,null,null,null,null,null,null,null,null,null,null,null,null,null,null,null,null,null,null,null,null,null,null,null,null,null,null,null,null,null,null,null,null,null,null,null,null,null,null,null,null,null,null,null,null,null,null,null,null,null,null,null,null,"2003-05-29",{"$f":"HB11+39","v":"2003-05-29"},"x","Christi. Himmelfahrt","39 Tage nach Ostersonntag"]
[null,null,0,0,0,0,0,null,null,null,null,null,null,null,null,null,null,null,null,null,null,null,null,null,null,null,null,null,null,null,null,null,null,null,null,null,null,null,null,null,null,null,null,null,null,null,null,null,null,null,null,null,null,null,null,null,null,null,null,null,null,null,null,null,null,null,null,null,null,null,null,null,null,null,null,null,null,null,null,null,null,null,null,null,null,null,null,null,null,null,null,null,null,null,null,null,null,null,null,null,null,null,null,null,null,null,null,null,null,null,null,null,null,null,null,null,null,null,null,null,null,null,null,null,null,null,null,null,null,null,null,null,null,null,null,null,null,null,null,null,null,null,null,null,null,null,null,null,null,null,null,null,null,null,null,null,null,null,null,null,null,null,null,null,null,null,null,null,null,null,null,null,null,null,null,null,null,null,null,null,null,null,null,null,null,null,null,null,null,null,null,null,null,null,null,null,null,null,null,null,null,null,null,null,null,null,null,null,"",{"$f":"HB4-WEEKDAY(HB4)+15","v":"2003-03-16"},null,"Muttertag","2. Sonntag im Mai"]
[null,null,0,0,0,0,0,null,null,null,null,null,null,null,null,null,null,null,null,null,null,null,null,null,null,null,null,null,null,null,null,null,null,null,null,null,null,null,null,null,null,null,null,null,null,null,null,null,null,null,null,null,null,null,null,null,null,null,null,null,null,null,null,null,null,null,null,null,null,null,null,null,null,null,null,null,null,null,null,null,null,null,null,null,null,null,null,null,null,null,null,null,null,null,null,null,null,null,null,null,null,null,null,null,null,null,null,null,null,null,null,null,null,null,null,null,null,null,null,null,null,null,null,null,null,null,null,null,null,null,null,null,null,null,null,null,null,null,null,null,null,null,null,null,null,null,null,null,null,null,null,null,null,null,null,null,null,null,null,null,null,null,null,null,null,null,null,null,null,null,null,null,null,null,null,null,null,null,null,null,null,null,null,null,null,null,null,null,null,null,null,null,null,null,null,null,null,null,null,null,null,null,null,null,null,null,null,null,"2003-06-08",{"$f":"HB11+49","v":"2003-06-08"},"x","Pfingstsonntag","49 Tage nach Ostersonntag"]
[null,null,0,0,0,0,0,null,null,null,null,null,null,null,null,null,null,null,null,null,null,null,null,null,null,null,null,null,null,null,null,null,null,null,null,null,null,null,null,null,null,null,null,null,null,null,null,null,null,null,null,null,null,null,null,null,null,null,null,null,null,null,null,null,null,null,null,null,null,null,null,null,null,null,null,null,null,null,null,null,null,null,null,null,null,null,null,null,null,null,null,null,null,null,null,null,null,null,null,null,null,null,null,null,null,null,null,null,null,null,null,null,null,null,null,null,null,null,null,null,null,null,null,null,null,null,null,null,null,null,null,null,null,null,null,null,null,null,null,null,null,null,null,null,null,null,null,null,null,null,null,null,null,null,null,null,null,null,null,null,null,null,null,null,null,null,null,null,null,null,null,null,null,null,null,null,null,null,null,null,null,null,null,null,null,null,null,null,null,null,null,null,null,null,null,null,null,null,null,null,null,null,null,null,null,null,null,null,"2003-06-09",{"$f":"HB11+50","v":"2003-06-09"},"x","Pfingstmontag","50 Tage nach Ostersonntag"]
[null,null,0,0,0,0,0,null,null,null,null,null,null,null,null,null,null,null,null,null,null,null,null,null,null,null,null,null,null,null,null,null,null,null,null,null,null,null,null,null,null,null,null,null,null,null,null,null,null,null,null,null,null,null,null,null,null,null,null,null,null,null,null,null,null,null,null,null,null,null,null,null,null,null,null,null,null,null,null,null,null,null,null,null,null,null,null,null,null,null,null,null,null,null,null,null,null,null,null,null,null,null,null,null,null,null,null,null,null,null,null,null,null,null,null,null,null,null,null,null,null,null,null,null,null,null,null,null,null,null,null,null,null,null,null,null,null,null,null,null,null,null,null,null,null,null,null,null,null,null,null,null,null,null,null,null,null,null,null,null,null,null,null,null,null,null,null,null,null,null,null,null,null,null,null,null,null,null,null,null,null,null,null,null,null,null,null,null,null,null,null,null,null,null,null,null,null,null,null,null,null,null,null,null,null,null,null,null,"",{"$f":"HB11+60","v":"2003-06-19"},null,"Fronleichnam","60 Tage nach Ostersonntag"]
[null,null,0,0,0,0,0,null,null,null,null,null,null,null,null,null,null,null,null,null,null,null,null,null,null,null,null,null,null,null,null,null,null,null,null,null,null,null,null,null,null,null,null,null,null,null,null,null,null,null,null,null,null,null,null,null,null,null,null,null,null,null,null,null,null,null,null,null,null,null,null,null,null,null,null,null,null,null,null,null,null,null,null,null,null,null,null,null,null,null,null,null,null,null,null,null,null,null,null,null,null,null,null,null,null,null,null,null,null,null,null,null,null,null,null,null,null,null,null,null,null,null,null,null,null,null,null,null,null,null,null,null,null,null,null,null,null,null,null,null,null,null,null,null,null,null,null,null,null,null,null,null,null,null,null,null,null,null,null,null,null,null,null,null,null,null,null,null,null,null,null,null,null,null,null,null,null,null,null,null,null,null,null,null,null,null,null,null,null,null,null,null,null,null,null,null,null,null,null,null,null,null,null,null,null,null,null,null,"",{"$f":"DATE(HB$1,8,15)","v":"2003-08-15"},null,"Mariä Himmelfahrt","15. August"]
[null,null,0,0,0,0,0,null,null,null,null,null,null,null,null,null,null,null,null,null,null,null,null,null,null,null,null,null,null,null,null,null,null,null,null,null,null,null,null,null,null,null,null,null,null,null,null,null,null,null,null,null,null,null,null,null,null,null,null,null,null,null,null,null,null,null,null,null,null,null,null,null,null,null,null,null,null,null,null,null,null,null,null,null,null,null,null,null,null,null,null,null,null,null,null,null,null,null,null,null,null,null,null,null,null,null,null,null,null,null,null,null,null,null,null,null,null,null,null,null,null,null,null,null,null,null,null,null,null,null,null,null,null,null,null,null,null,null,null,null,null,null,null,null,null,null,null,null,null,null,null,null,null,null,null,null,null,null,null,null,null,null,null,null,null,null,null,null,null,null,null,null,null,null,null,null,null,null,null,null,null,null,null,null,null,null,null,null,null,null,null,null,null,null,null,null,null,null,null,null,null,null,null,null,null,null,null,null,"2003-10-03",{"$f":"DATE(HB$1,10,3)","v":"2003-10-03"},"x","Tag der Einheit","3. Oktober"]
[null,null,0,0,0,0,0,null,null,null,null,null,null,null,null,null,null,null,null,null,null,null,null,null,null,null,null,null,null,null,null,null,null,null,null,null,null,null,null,null,null,null,null,null,null,null,null,null,null,null,null,null,null,null,null,null,null,null,null,null,null,null,null,null,null,null,null,null,null,null,null,null,null,null,null,null,null,null,null,null,null,null,null,null,null,null,null,null,null,null,null,null,null,null,null,null,null,null,null,null,null,null,null,null,null,null,null,null,null,null,null,null,null,null,null,null,null,null,null,null,null,null,null,null,null,null,null,null,null,null,null,null,null,null,null,null,null,null,null,null,null,null,null,null,null,null,null,null,null,null,null,null,null,null,null,null,null,null,null,null,null,null,null,null,null,null,null,null,null,null,null,null,null,null,null,null,null,null,null,null,null,null,null,null,null,null,null,null,null,null,null,null,null,null,null,null,null,null,null,null,null,null,null,null,null,null,null,null,"2003-10-31",{"$f":"DATE(HB$1,10,31)","v":"2003-10-31"},"x","Reformationstag","31. Oktober"]
[null,null,0,0,0,0,0,null,null,null,null,null,null,null,null,null,null,null,null,null,null,null,null,null,null,null,null,null,null,null,null,null,null,null,null,null,null,null,null,null,null,null,null,null,null,null,null,null,null,null,null,null,null,null,null,null,null,null,null,null,null,null,null,null,null,null,null,null,null,null,null,null,null,null,null,null,null,null,null,null,null,null,null,null,null,null,null,null,null,null,null,null,null,null,null,null,null,null,null,null,null,null,null,null,null,null,null,null,null,null,null,null,null,null,null,null,null,null,null,null,null,null,null,null,null,null,null,null,null,null,null,null,null,null,null,null,null,null,null,null,null,null,null,null,null,null,null,null,null,null,null,null,null,null,null,null,null,null,null,null,null,null,null,null,null,null,null,null,null,null,null,null,null,null,null,null,null,null,null,null,null,null,null,null,null,null,null,null,null,null,null,null,null,null,null,null,null,null,null,null,null,null,null,null,null,null,null,null,"",{"$f":"DATE(HB$1,11,1)","v":"2003-11-01"},null,"Allerheiligen","1.November"]
[null,null,0,0,0,0,0,null,null,null,null,null,null,null,null,null,null,null,null,null,null,null,null,null,null,null,null,null,null,null,null,null,null,null,null,null,null,null,null,null,null,null,null,null,null,null,null,null,null,null,null,null,null,null,null,null,null,null,null,null,null,null,null,null,null,null,null,null,null,null,null,null,null,null,null,null,null,null,null,null,null,null,null,null,null,null,null,null,null,null,null,null,null,null,null,null,null,null,null,null,null,null,null,null,null,null,null,null,null,null,null,null,null,null,null,null,null,null,null,null,null,null,null,null,null,null,null,null,null,null,null,null,null,null,null,null,null,null,null,null,null,null,null,null,null,null,null,null,null,null,null,null,null,null,null,null,null,null,null,null,null,null,null,null,null,null,null,null,null,null,null,null,null,null,null,null,null,null,null,null,null,null,null,null,null,null,null,null,null,null,null,null,null,null,null,null,null,null,null,null,null,null,null,null,null,null,null,null,"",{"$f":"DATE(HB$1,11,11)","v":"2003-11-11"},null,"Martinstag","11.November"]
[null,null,0,0,0,0,0,null,null,null,null,null,null,null,null,null,null,null,null,null,null,null,null,null,null,null,null,null,null,null,null,null,null,null,null,null,null,null,null,null,null,null,null,null,null,null,null,null,null,null,null,null,null,null,null,null,null,null,null,null,null,null,null,null,null,null,null,null,null,null,null,null,null,null,null,null,null,null,null,null,null,null,null,null,null,null,null,null,null,null,null,null,null,null,null,null,null,null,null,null,null,null,null,null,null,null,null,null,null,null,null,null,null,null,null,null,null,null,null,null,null,null,null,null,null,null,null,null,null,null,null,null,null,null,null,null,null,null,null,null,null,null,null,null,null,null,null,null,null,null,null,null,null,null,null,null,null,null,null,null,null,null,null,null,null,null,null,null,null,null,null,null,null,null,null,null,null,null,null,null,null,null,null,null,null,null,null,null,null,null,null,null,null,null,null,null,null,null,null,null,null,null,null,null,null,null,null,null,"",{"$f":"DATE(HB$1,12,25)-WEEKDAY(DATE(HB$1,12,25),2)-4*7-4","v":"2003-11-19"},null,"Buß- und Bettag"]
[null,null,0,0,0,0,0,null,null,null,null,null,null,null,null,null,null,null,null,null,null,null,null,null,null,null,null,null,null,null,null,null,null,null,null,null,null,null,null,null,null,null,null,null,null,null,null,null,null,null,null,null,null,null,null,null,null,null,null,null,null,null,null,null,null,null,null,null,null,null,null,null,null,null,null,null,null,null,null,null,null,null,null,null,null,null,null,null,null,null,null,null,null,null,null,null,null,null,null,null,null,null,null,null,null,null,null,null,null,null,null,null,null,null,null,null,null,null,null,null,null,null,null,null,null,null,null,null,null,null,null,null,null,null,null,null,null,null,null,null,null,null,null,null,null,null,null,null,null,null,null,null,null,null,null,null,null,null,null,null,null,null,null,null,null,null,null,null,null,null,null,null,null,null,null,null,null,null,null,null,null,null,null,null,null,null,null,null,null,null,null,null,null,null,null,null,null,null,null,null,null,null,null,null,null,null,null,null,"",{"$f":"HB28-7","v":"2003-12-18"},null,"1. Advent","4. Sonntag vor Weihnachten"]
[null,null,0,0,0,0,0,null,null,null,null,null,null,null,null,null,null,null,null,null,null,null,null,null,null,null,null,null,null,null,null,null,null,null,null,null,null,null,null,null,null,null,null,null,null,null,null,null,null,null,null,null,null,null,null,null,null,null,null,null,null,null,null,null,null,null,null,null,null,null,null,null,null,null,null,null,null,null,null,null,null,null,null,null,null,null,null,null,null,null,null,null,null,null,null,null,null,null,null,null,null,null,null,null,null,null,null,null,null,null,null,null,null,null,null,null,null,null,null,null,null,null,null,null,null,null,null,null,null,null,null,null,null,null,null,null,null,null,null,null,null,null,null,null,null,null,null,null,null,null,null,null,null,null,null,null,null,null,null,null,null,null,null,null,null,null,null,null,null,null,null,null,null,null,null,null,null,null,null,null,null,null,null,null,null,null,null,null,null,null,null,null,null,null,null,null,null,null,null,null,null,null,null,null,null,null,null,null,{"$f":"IF(HC27=\"x\",$HB27,\"\")","v":""},{"$f":"DATE(HB$1,12,24)","v":"2003-12-24"},null,"Heiligabend","24. Dezember"]
[null,null,0,0,0,0,0,null,null,null,null,null,null,null,null,null,null,null,null,null,null,null,null,null,null,null,null,null,null,null,null,null,null,null,null,null,null,null,null,null,null,null,null,null,null,null,null,null,null,null,null,null,null,null,null,null,null,null,null,null,null,null,null,null,null,null,null,null,null,null,null,null,null,null,null,null,null,null,null,null,null,null,null,null,null,null,null,null,null,null,null,null,null,null,null,null,null,null,null,null,null,null,null,null,null,null,null,null,null,null,null,null,null,null,null,null,null,null,null,null,null,null,null,null,null,null,null,null,null,null,null,null,null,null,null,null,null,null,null,null,null,null,null,null,null,null,null,null,null,null,null,null,null,null,null,null,null,null,null,null,null,null,null,null,null,null,null,null,null,null,null,null,null,null,null,null,null,null,null,null,null,null,null,null,null,null,null,null,null,null,null,null,null,null,null,null,null,null,null,null,null,null,null,null,null,null,null,null,{"$f":"IF(HC28=\"x\",$HB28,\"\")","v":"2003-12-25"},{"$f":"DATE(HB$1,12,25)","v":"2003-12-25"},"x","1. Weihnachtstag","25. Dezember"]
[null,null,0,0,0,0,0,null,null,null,null,null,null,null,null,null,null,null,null,null,null,null,null,null,null,null,null,null,null,null,null,null,null,null,null,null,null,null,null,null,null,null,null,null,null,null,null,null,null,null,null,null,null,null,null,null,null,null,null,null,null,null,null,null,null,null,null,null,null,null,null,null,null,null,null,null,null,null,null,null,null,null,null,null,null,null,null,null,null,null,null,null,null,null,null,null,null,null,null,null,null,null,null,null,null,null,null,null,null,null,null,null,null,null,null,null,null,null,null,null,null,null,null,null,null,null,null,null,null,null,null,null,null,null,null,null,null,null,null,null,null,null,null,null,null,null,null,null,null,null,null,null,null,null,null,null,null,null,null,null,null,null,null,null,null,null,null,null,null,null,null,null,null,null,null,null,null,null,null,null,null,null,null,null,null,null,null,null,null,null,null,null,null,null,null,null,null,null,null,null,null,null,null,null,null,null,null,null,{"$f":"IF(HC29=\"x\",$HB29,\"\")","v":"2003-12-26"},{"$f":"DATE(HB$1,12,26)","v":"2003-12-26"},"x","2. Weihnachtstag","26. Dezember"]
[null,null,0,0,0,0,0,null,null,null,null,null,null,null,null,null,null,null,null,null,null,null,null,null,null,null,null,null,null,null,null,null,null,null,null,null,null,null,null,null,null,null,null,null,null,null,null,null,null,null,null,null,null,null,null,null,null,null,null,null,null,null,null,null,null,null,null,null,null,null,null,null,null,null,null,null,null,null,null,null,null,null,null,null,null,null,null,null,null,null,null,null,null,null,null,null,null,null,null,null,null,null,null,null,null,null,null,null,null,null,null,null,null,null,null,null,null,null,null,null,null,null,null,null,null,null,null,null,null,null,null,null,null,null,null,null,null,null,null,null,null,null,null,null,null,null,null,null,null,null,null,null,null,null,null,null,null,null,null,null,null,null,null,null,null,null,null,null,null,null,null,null,null,null,null,null,null,null,null,null,null,null,null,null,null,null,null,null,null,null,null,null,null,null,null,null,null,null,null,null,null,null,null,null,null,null,null,null,{"$f":"IF(HC30=\"x\",$HB30,\"\")","v":"2003-12-31"},{"$f":"DATE(HB$1,12,31)","v":"2003-12-31"},"x","Silvester","31. Dezember"]
[null,null,0,0,0,0,0]
[null,null,0,0,0,0,0]
[null,null,0,0,0,0,0]
[null,null,0,0,0,0,0]
[null,null,0,0,0,0,0]
[null,null,0,0,0,0,0]
[null,null,0,0,0,0,0]
[null,null,0,0,0,0,0]
[null,null,0,0,0,0,0]
[null,null,0,0,0,{"$f":"D40+E40","v":0},{"$f":"C40-F40","v":0}]
[null,null,null,null,null,null,null,{"$f":"COUNTIF(H6:H40,\"U\")","v":0},{"$f":"COUNTIF(I6:I40,\"U\")","v":1},1,0,0,0,1,1,1,1,0,0,0,0,0,0,0,0,0,0,0,0,0,0,0,0,0,0,0,0,0,0,0,0,0,0,0,0,0,0,0,0,0,0,0,0,0,0,0,0,0,0,0,0,0,0,0,0,0,0,0,0,0,0,0,{"$f":"COUNTIF(BU6:BU40,\"U\")","v":0},0,0,0,0,0,0,0,0,0,0,0,0,0,0,0,0,0,0,0,0,0,0,0,0,0,0,0,0,0,0,0,0,0,0,0,0,0,0,0,0,0,0,0,0,0,0,0,0,0,0,0,0,0,0,0,0,0,0,0,0,0,0,0,{"$f":"COUNTIF(EG6:EG40,\"U\")","v":0},0,0,0,0,0,0,0,0,0,0,0,0,0,0,0,0,0,0,0,0,0,0,0,0,0,0,0,0,0,0,0,0,0,0,0,0,0,0,0,0,0,0,0,0,0,0,0,0,0,0,0,0,0,0]
[]
[2003,2," Urlaubsanspruch"," Urlaub 1. Halbjahr g."," Urlaub 2. Halbjahr g."," Urlaub genommen"," Rest","2003-07-01",null,null,null,null,null,null,null,null,null,null,null,null,null,null,null,null,null,null,null,null,null,null,null,null,null,null,null,null,null,null,"2003-08-01",null,null,null,null,null,null,null,null,null,null,null,null,null,null,null,null,null,null,null,null,null,null,null,null,null,null,null,null,null,null,"2003-09-01",null,null,null,null,null,null,null,null,null,null,null,null,null,null,null,null,null,null,null,null,null,null,null,null,null,null,null,null,null,"2003-10-01",null,null,null,null,null,null,null,null,null,null,null,null,null,null,null,null,null,null,null,null,null,null,null,null,null,null,null,null,null,null,"2003-11-01",null,null,null,null,null,null,null,null,null,null,null,null,null,null,null,null,null,null,null,null,null,null,null,null,null,null,null,null,null,"2003-12-01"]
[]
[null,null,null,null,null,null,null,{"$f":"DATE($A$2,7,1)","v":"2003-07-01"},{"$f":"H45+1","v":"2003-07-02"},{"$f":"I45+1","v":"2003-07-03"},"2003-07-04","2003-07-05","2003-07-06","2003-07-07","2003-07-08","2003-07-09","2003-07-10","2003-07-11","2003-07-12","2003-07-13","2003-07-14","2003-07-15","2003-07-16","2003-07-17","2003-07-18","2003-07-19","2003-07-20","2003-07-21","2003-07-22","2003-07-23","2003-07-24","2003-07-25","2003-07-26","2003-07-27","2003-07-28","2003-07-29","2003-07-30","2003-07-31","2003-08-01","2003-08-02","2003-08-03","2003-08-04","2003-08-05","2003-08-06","2003-08-07","2003-08-08","2003-08-09","2003-08-10","2003-08-11","2003-08-12","2003-08-13","2003-08-14","2003-08-15","2003-08-16","2003-08-17","2003-08-18","2003-08-19","2003-08-20","2003-08-21","2003-08-22","2003-08-23","2003-08-24","2003-08-25","2003-08-26","2003-08-27","2003-08-28","2003-08-29","2003-08-30","2003-08-31","2003-09-01","2003-09-02","2003-09-03","2003-09-04",{"$f":"BU45+1","v":"2003-09-05"},"2003-09-06","2003-09-07","2003-09-08","2003-09-09","2003-09-10","2003-09-11","2003-09-12","2003-09-13","2003-09-14","2003-09-15","2003-09-16","2003-09-17","2003-09-18","2003-09-19","2003-09-20","2003-09-21","2003-09-22","2003-09-23","2003-09-24","2003-09-25","2003-09-26","2003-09-27","2003-09-28","2003-09-29","2003-09-30","2003-10-01","2003-10-02","2003-10-03","2003-10-04","2003-10-05","2003-10-06","2003-10-07","2003-10-08","2003-10-09","2003-10-10","2003-10-11","2003-10-12","2003-10-13","2003-10-14","2003-10-15","2003-10-16","2003-10-17","2003-10-18","2003-10-19","2003-10-20","2003-10-21","2003-10-22","2003-10-23","2003-10-24","2003-10-25","2003-10-26","2003-10-27","2003-10-28","2003-10-29","2003-10-30","2003-10-31","2003-11-01","2003-11-02","2003-11-03","2003-11-04","2003-11-05","2003-11-06","2003-11-07",{"$f":"EG45+1","v":"2003-11-08"},"2003-11-09","2003-11-10","2003-11-11","2003-11-12","2003-11-13","2003-11-14","2003-11-15","2003-11-16","2003-11-17","2003-11-18","2003-11-19","2003-11-20","2003-11-21","2003-11-22","2003-11-23","2003-11-24","2003-11-25","2003-11-26","2003-11-27","2003-11-28","2003-11-29","2003-11-30","2003-12-01","2003-12-02","2003-12-03","2003-12-04","2003-12-05","2003-12-06","2003-12-07","2003-12-08","2003-12-09","2003-12-10","2003-12-11","2003-12-12","2003-12-13","2003-12-14","2003-12-15","2003-12-16","2003-12-17","2003-12-18","2003-12-19","2003-12-20","2003-12-21","2003-12-22","2003-12-23","2003-12-24","2003-12-25","2003-12-26","2003-12-27","2003-12-28","2003-12-29","2003-12-30","2003-12-31"]
["Name","Vorname"]
[{"$f":"IF(A6=\"\",\"\",A6)","v":"Juhnke"},"Harald",{"$f":"C6","v":30},6,{"$f":"COUNTIF(H47:GZ47,\"U\")","v":0},{"$f":"D47+E47","v":6},{"$f":"C47-F47","v":24}]
["","",0,0,0,0,0]
["","",0,0,0,0,0]
["","",0,0,0,0,0]
["","",0,0,0,0,0]
["","",0,0,0,0,0]
["","",0,0,0,0,0]
["","",0,0,0,0,0]
["","",0,0,0,0,0]
["","",0,0,0,0,0]
["","",0,0,0,0,0]
["","",0,0,0,0,0]
["","",0,0,0,0,0]
["","",0,0,0,0,0]
["","",0,0,0,0,0]
["","",0,0,0,0,0]
[{"$f":"IF(A22=\"\",\"\",A22)","v":""},"",{"$f":"C22","v":0},0,0,0,0]
["","",0,0,0,0,0]
["","",0,0,0,0,0]
["","",0,0,0,0,0]
["","",0,0,0,0,0]
["","",0,0,0,0,0]
["","",0,0,0,0,0]
["","",0,0,0,0,0]
["","",0,0,0,0,0]
["","",0,0,0,0,0]
["","",0,0,0,0,0]
["","",0,0,0,0,0]
["","",0,0,0,0,0]
["","",0,0,0,0,0]
["","",0,0,0,0,0]
["","",0,0,0,0,0]
[{"$f":"IF(A38=\"\",\"\",A38)","v":""},"",{"$f":"C38","v":0},0,0,0,0]
["","",0,0,0,0,0]
["","",0,0,0,{"$f":"D81+E81","v":0},{"$f":"C81-F81","v":0}]
[null,null,null,null,null,null,null,{"$f":"COUNTIF(H47:H81,\"U\")","v":0},0,0,0,0,0,0,0,0,0,0,0,0,0,0,0,0,0,0,0,0,0,0,0,0,0,0,0,0,0,0,0,0,0,0,0,0,0,0,0,0,0,0,0,0,0,0,0,0,0,0,0,0,0,0,0,0,0,0,0,0,0,0,0,{"$f":"COUNTIF(BT47:BT81,\"U\")","v":0},0,0,0,0,0,0,0,0,0,0,0,0,0,0,0,0,0,0,0,0,0,0,0,0,0,0,0,0,0,0,0,0,0,0,0,0,0,0,0,0,0,0,0,0,0,0,0,0,0,0,0,0,0,0,0,0,0,0,0,0,0,0,0,{"$f":"COUNTIF(EF47:EF81,\"U\")","v":0},0,0,0,0,0,0,0,0,0,0,0,0,0,0,0,0,0,0,0,0,0,0,0,0,0,0,0,0,0,0,0,0,0,0,0,0,0,0,0,0,0,0,0,0,0,0,0,0,0,0,0,0,0,0,0]
[null,null,null,null,null,null,null,{"$f":"H45-H4+1","v":182},{"$f":"H83+1","v":183},{"$f":"I83+1","v":184},185,186,187,188,189,190,191,192,193,194,195,196,197,198,199,200,201,202,203,204,205,206,207,208,209,210,211,212,213,214,215,216,217,218,219,220,221,222,223,224,225,226,227,228,229,230,231,232,233,234,235,236,237,238,239,240,241,242,243,244,245,246,247,{"$f":"BU83+1","v":248},249,250,251,252,253,254,255,256,257,258,259,260,261,262,263,264,265,266,267,268,269,270,271,272,273,274,275,276,277,278,279,280,281,282,283,284,285,286,287,288,289,290,291,292,293,294,295,296,297,298,299,300,301,302,303,304,305,306,307,308,309,310,311,{"$f":"EG83+1","v":312},313,314,315,316,317,318,319,320,321,322,323,324,325,326,327,328,329,330,331,332,333,334,335,336,337,338,339,340,341,342,343,344,345,346,347,348,349,350,351,352,353,354,355,356,357,358,359,360,361,362,363,364,365]
[]
[]
[]
[]
[]
[]
[]
[]
[]
[]
[]
[]
[]
[]
[]
[]
[]
[]
[]
[]
[]
[]
[]
[]
[]
[]
[]
[]
[]
[]
[]
[]
[]
[]
[]
[]
[]
[]
[]
[]
[]
[]
[]
[]
[]
[]
[]
[]
[]
[]
[]
[]
[]
[]
[]
[]
[]
[]
[]
[]
[]
[]
[]
[]
[]
[]
[]
[]
[]
[]
[]
[]
[]
[]
[]
[]
[]
[]
[]
[]
[]
[]
[]
[]
[]
[]
[]
[]
[]
[]
[]
[]
[]
[]
[]
[]
[]
[]
[]
[]
[]
[]
[]
[]
[]
[]
[]
[]
[]
[]
[]
[]
[]
[]
[]
[]
[]
[]
[]
[]
[]
[]
[]
[]
[]
[]
[]
[]
[]
[]
[]
[]
[]
[]
[]
[]
[]
[]
[]
[]
[]
[]
[]
[]
[]
[]
[]
[]
[]
[]
[]
[]
[]
[]
[]
[]
[]
[]
[]
[]
[]
[]
[]
[]
[]
[]
[]
[]
[]
[]
[]
[]
[]
[]
[]
[]
[]
[]
[]
[]
[]
[]
[]
[]
[]
[]
[]
[]
[]
[]
[]
[]
[]
[]
[]
[]
[]
[]
[]
[]
[]
[]
[]
[]
[]
[]
[]
[]
[]
[]
[]
[]
[]
[]
[]
[]
[]
[]
[]
[]
[]
[]
[]
[]
[]
[]
[]
[]
[]
[]
[]
[]
[]
[]
[]
[]
[]
[]
[]
[]
[]
[]
[]
[]
[]
[]
[]
[]
[]
[]
[]
[]
[]
[]
[]
[]
[]
[]
[]
[]
[]
[]
[]
[]
[]
[]
[]
[]
[]
[]
[]
[]
[]
[]
[]
[]
[]
[]
[]
[]
[]
[]
[]
[]
[]
[]
[]
[]
[]
[]
[]
[]
[]
[]
[]
[]
[]
[]
[]
[]
[]
[]
[]
[]
[]
[]
[]
[]
[]
[]
[]
[]
[]
[]
[]
[]
[]
[]
[]
[]
[]
[]
[]
[]
[]
[]
[]
[]
[]
[]
[]
[]
[]
[]
[]
[]
[]
[]
[]
[]
[]
[]
[]
[]
[]
[]
[]
[]
[]
[]
[]
[]
[]
[]
[]
[]
[]
[]
[]
[]
[]
[]
[]
[]
[]
[]
[]
[]
[]
[]
[]
[]
[]
[]
[]
[]
[]
[]
[]
[]
[]
[]
[]
[]
[]
[]
[]
[]
[]
[]
[]
[]
[]
[]
[]
[]
[]
[]
[]
[]
[]
[]
[]
[]
[]
[]
[]
[]
[]
[]
[]
[]
[]
[]
[]
[]
[]
[]
[2003,null," Urlaubsanspruch"," Urlaub 1. Halbjahr g."," Urlaub 2. Halbjahr g."," Urlaub genommen"," Rest","2003-06-01"]
[null,null,null,null,null,null,null,null,23,null,null,null,null,null,null,24,null,null,null,null,null,null,25,null,null,null,null,null,null,26,null,null,null,null,null,null,27]
[null,null,null,null,null,null,null,{"$f":"G504+1","v":"1900-01-01"},"1900-01-02","1900-01-03","1900-01-04","1900-01-05","1900-01-06","1900-01-07","1900-01-08","1900-01-09","1900-01-10","1900-01-11","1900-01-12","1900-01-13","1900-01-14","1900-01-15","1900-01-16","1900-01-17","1900-01-18","1900-01-19","1900-01-20","1900-01-21","1900-01-22","1900-01-23","1900-01-24","1900-01-25","1900-01-26","1900-01-27","1900-01-28","1900-01-29","1900-01-30"]
["Name","Vorname"]
["Meier",null,30,{"$f":"COUNTIF(H506:GZ506,\"U\")","v":1},{"$f":"E547","v":0},{"$f":"D506+E506","v":1},{"$f":"C506-F506","v":29},null,null,null,null,null,null,null,null,null,null,null,null,null,null,null,null,null,null,null,null,null,null,null,null,null,null,null,null,null,"U"]
["Schulze",null,30,1,0,{"$f":"D507+E507","v":1},{"$f":"C507-F507","v":29},null,null,null,null,null,null,null,null,null,null,null,null,null,null,null,null,null,null,null,null,null,null,null,null,null,null,null,null,null,"U"]
[null,null,0,0,0,{"$f":"D508+E508","v":0},{"$f":"C508-F508","v":0}]
[null,null,0,0,0,0,0]
[null,null,0,0,0,0,0]
[null,null,0,0,0,0,0]
[null,null,0,0,0,0,0]
[null,null,0,0,0,0,0]
[null,null,0,0,0,0,0]
[null,null,0,0,0,0,0]
[null,null,0,0,0,0,0]
[null,null,0,0,0,0,0]
[null,null,0,0,0,0,0]
[null,null,0,0,0,0,0]
[null,null,0,0,0,0,0]
[null,null,0,0,0,0,0]
[null,null,0,0,0,0,0]
[null,null,0,0,0,0,0]
[null,null,0,0,0,0,0]
[null,null,0,0,0,0,0]
[null,null,0,0,0,0,0]
[null,null,0,0,0,0,0]
[null,null,0,0,0,0,0]
[null,null,0,0,0,0,0]
[null,null,0,0,0,0,0]
[null,null,0,0,0,0,0]
[null,null,0,0,0,0,0]
[null,null,0,0,0,0,0]
[null,null,0,0,0,0,0]
[null,null,0,0,0,0,0]
[null,null,0,0,0,0,0]
[null,null,0,0,0,0,0]
[null,null,0,0,0,0,0]
[null,null,0,0,0,0,0]
[null,null,0,0,0,0,0]